Workbook

Sheet Титульный лист

Sheet задача 1
A1: Задача №1 Вариант 1
A2: Число оборотов двигателя y функционально зависит от температуры x. Вычислить число оборотов двигателя y(x) при температуре a и b. Построить график этой функциональной зависимости на интервале [a,b] с шагом 0,05l; l – длина отрезка [a,b].
A3: a | B3: b | C3: y(x)
A4: -2.751 | B4: 0.269
A6: Решение
A7: x | B7: y | C7: Функциональная зависимость
A8: -2.751 | B8: =IF(A8<-1,-3*A8+2+SIN(A8),IF(-1<=A8<0,ABS(A8),A8*LN(A8+1))) -> 9.872263501
A9: -2.6 | B9: =IF(A9<-1,-3*A9+2+SIN(A9),IF(-1<=A9<0,ABS(A9),A9*LN(A9+1))) -> 9.284498628
A10: -2.449 | B10: =IF(A10<-1,-3*A10+2+SIN(A10),IF(-1<=A10<0,ABS(A10),A10*LN(A10+1))) -> 8.708465386
A11: -2.298 | B11: =IF(A11<-1,-3*A11+2+SIN(A11),IF(-1<=A11<0,ABS(A11),A11*LN(A11+1))) -> 8.146963728
A12: -2.147 | B12: 7.602462905
A13: -1.996 | B13: 7.077045265
A14: -1.845 | B14: 6.572358867
A15: -1.694 | B15: 6.089579977
A16: -1.543 | B16: =IF(A16<-1,-3*A16+2+SIN(A16),IF(-1<=A16<0,ABS(A16),A16*LN(A16+1))) -> 5.629386293
A17: -1.392 | B17: =IF(A17<-1,-3*A17+2+SIN(A17),IF(-1<=A17<0,ABS(A17),A17*LN(A17+1))) -> 5.191941527
A18: -1.241 | B18: =IF(A18<-1,-3*A18+2+SIN(A18),IF(-1<=A18<0,ABS(A18),A18*LN(A18+1))) -> 4.776891677
A19: -1.09 | B19: =IF(A19<-1,-3*A19+2+SIN(A19),IF(-1<=A19<0,ABS(A19),A19*LN(A19+1))) -> 4.383373086
A20: -0.939 | B20: 2.626271649
A21: -0.788 | B21: =IF(A21<-1,-3*A21+2+SIN(A21),IF(-1<=A21<0,ABS(A21),A21*LN(A21+1))) -> 1.222321175
A22: -0.637 | B22: =IF(A22<-1,-3*A22+2+SIN(A22),IF(-1<=A22<0,ABS(A22),A22*LN(A22+1))) -> 0.6455055073
A23: -0.486 | B23: =IF(A23<-1,-3*A23+2+SIN(A23),IF(-1<=A23<0,ABS(A23),A23*LN(A23+1))) -> 0.3234485586
A24: -0.335 | B24: =IF(A24<-1,-3*A24+2+SIN(A24),IF(-1<=A24<0,ABS(A24),A24*LN(A24+1))) -> 0.1366693598
A25: -0.184 | B25: =IF(A25<-1,-3*A25+2+SIN(A25),IF(-1<=A25<0,ABS(A25),A25*LN(A25+1))) -> 0.03741473002
A26: -0.033 | B26: =IF(A26<-1,-3*A26+2+SIN(A26),IF(-1<=A26<0,ABS(A26),A26*LN(A26+1))) -> 0.001107373856
A27: 0.118 | B27: =IF(A27<-1,-3*A27+2+SIN(A27),IF(-1<=A27<0,ABS(A27),A27*LN(A27+1))) -> 0.01316188222
A28: 0.269 | B28: =IF(A28<-1,-3*A28+2+SIN(A28),IF(-1<=A28<0,ABS(A28),A28*LN(A28+1))) -> 0.06408365177

Sheet задача 2
A1: Задача №2
A2: Число оборотов f, как и в предыдущей задаче функционально зависит от температуры x. Требуется найти температуру, при которой число оборотов равно нулю, то есть найти все корни уравнения f(x)=0 на отрезке локализации [-4;4] с точностью 0,0001.
A5: Решение
A6: x | B6: y | C6: Схематичный график функции
A7: -4 | B7: =A7^3-3*A7^2-13*A7-7 -> -67
A8: -3.75 | B8: =A8^3-3*A8^2-13*A8-7 -> -53.171875
A9: -3.5 | B9: =A9^3-3*A9^2-13*A9-7 -> -41.125
A10: -3.25 | B10: -30.765625
A11: -3 | B11: -22
A12: -2.75 | B12: -14.734375
A13: -2.5 | B13: -8.875
A14: -2.25 | B14: -4.328125
A15: -2 | B15: =A15^3-3*A15^2-13*A15-7 -> -1
A16: -1.75 | B16: 1.203125
A17: -1.5 | B17: 2.375
A18: -1.25 | B18: 2.609375
A19: -1 | B19: 2
A20: -0.75 | B20: 0.640625
A21: -0.5 | B21: =A21^3-3*A21^2-13*A21-7 -> -1.375
A22: -0.25 | B22: =A22^3-3*A22^2-13*A22-7 -> -3.953125
A23: 0 | B23: =A23^3-3*A23^2-13*A23-7 -> -7
A24: 0.25 | B24: -10.421875
A25: 0.5 | B25: -14.125
A26: 0.75 | B26: -18.015625
A27: 1 | B27: -22
A28: 1.25 | B28: -25.984375
A29: 1.5 | B29: -29.875
A30: 1.75 | B30: -33.578125
A31: 2 | B31: =A31^3-3*A31^2-13*A31-7 -> -37
A32: 2.25 | B32: =A32^3-3*A32^2-13*A32-7 -> -40.046875
A33: 2.5 | B33: =A33^3-3*A33^2-13*A33-7 -> -42.625
A34: 2.75 | B34: -44.640625
A35: 3 | B35: -46
A36: 3.25 | B36: -46.609375
A37: 3.5 | B37: -46.375
A38: 3.75 | B38: -45.203125
A39: 4 | B39: -43

Sheet задача 3
A1: Задача №3
A2: Построить таблицу значений функции z(x,y) и ее отображение в виде поверхности на области (x,y)є[-1..1,-1..1] с шагом 0,1 по каждому направлению.
A5: Решение
C6: Ось Ox
A7: Ось Oy | C7: -1 | D7: -0.9 | E7: -0.8 | F7: -0.7 | G7: -0.6 | H7: -0.5 | I7: -0.4 | J7: -0.3 | K7: -0.2 | L7: -0.1 | M7: 0 | N7: 0.1 | O7: 0.2 | P7: 0.3 | Q7: 0.4 | R7: 0.5 | S7: 0.6 | T7: 0.7 | U7: 0.8 | V7: 0.9 | W7: 1
B8: -1 | C8: =IF(C$7>0,$B8*SIN(PI()*C$7)^2,C$7*SIN(PI()*$B8)^2) -> -1.500988737e-32 | D8: =IF(D$7>0,$B8*SIN(PI()*D$7)^2,D$7*SIN(PI()*$B8)^2) -> -1.350889863e-32 | E8: =IF(E$7>0,$B8*SIN(PI()*E$7)^2,E$7*SIN(PI()*$B8)^2) -> -1.200790989e-32 | F8: -1.050692116e-32 | G8: -9.005932419e-33 | H8: -7.504943683e-33 | I8: -6.003954946e-33 | J8: -4.50296621e-33 | K8: -3.001977473e-33 | L8: -1.500988737e-33 | M8: 0 | N8: -0.09549150281 | O8: -0.3454915028 | P8: -0.6545084972 | Q8: -0.9045084972 | R8: -1 | S8: -0.9045084972 | T8: -0.6545084972 | U8: -0.3454915028 | V8: -0.09549150281 | W8: -1.500988737e-32
B9: -0.9 | C9: =IF(C$7>0,$B9*SIN(PI()*C$7)^2,C$7*SIN(PI()*$B9)^2) -> -0.09549150281 | D9: -0.08594235253 | E9: -0.07639320225 | F9: -0.06684405197 | G9: -0.05729490169 | H9: -0.04774575141 | I9: -0.03819660113 | J9: -0.02864745084 | K9: -0.01909830056 | L9: -0.009549150281 | M9: 0 | N9: -0.08594235253 | O9: -0.3109423525 | P9: -0.5890576475 | Q9: -0.8140576475 | R9: -0.9 | S9: -0.8140576475 | T9: -0.5890576475 | U9: -0.3109423525 | V9: -0.08594235253 | W9: -1.350889863e-32
B10: -0.8 | C10: -0.3454915028 | D10: -0.3109423525 | E10: -0.2763932023 | F10: -0.241844052 | G10: -0.2072949017 | H10: -0.1727457514 | I10: -0.1381966011 | J10: -0.1036474508 | K10: -0.06909830056 | L10: -0.03454915028 | M10: 0 | N10: -0.07639320225 | O10: -0.2763932023 | P10: -0.5236067977 | Q10: -0.7236067977 | R10: -0.8 | S10: -0.7236067977 | T10: -0.5236067977 | U10: -0.2763932023 | V10: -0.07639320225 | W10: -1.200790989e-32
B11: -0.7 | C11: -0.6545084972 | D11: -0.5890576475 | E11: -0.5236067977 | F11: -0.458155948 | G11: -0.3927050983 | H11: -0.3272542486 | I11: -0.2618033989 | J11: -0.1963525492 | K11: -0.1309016994 | L11: -0.06545084972 | M11: 0 | N11: -0.06684405197 | O11: -0.241844052 | P11: -0.458155948 | Q11: -0.633155948 | R11: -0.7 | S11: -0.633155948 | T11: -0.458155948 | U11: -0.241844052 | V11: -0.06684405197 | W11: -1.050692116e-32
B12: -0.6 | C12: -0.9045084972 | D12: -0.8140576475 | E12: -0.7236067977 | F12: -0.633155948 | G12: -0.5427050983 | H12: -0.4522542486 | I12: -0.3618033989 | J12: -0.2713525492 | K12: -0.1809016994 | L12: -0.09045084972 | M12: 0 | N12: -0.05729490169 | O12: -0.2072949017 | P12: -0.3927050983 | Q12: -0.5427050983 | R12: -0.6 | S12: -0.5427050983 | T12: -0.3927050983 | U12: -0.2072949017 | V12: -0.05729490169 | W12: -9.005932419e-33
B13: -0.5 | C13: -1 | D13: -0.9 | E13: -0.8 | F13: -0.7 | G13: -0.6 | H13: -0.5 | I13: -0.4 | J13: -0.3 | K13: -0.2 | L13: -0.1 | M13: 0 | N13: -0.04774575141 | O13: -0.1727457514 | P13: -0.3272542486 | Q13: -0.4522542486 | R13: -0.5 | S13: -0.4522542486 | T13: -0.3272542486 | U13: -0.1727457514 | V13: -0.04774575141 | W13: -7.504943683e-33
B14: -0.4 | C14: -0.9045084972 | D14: -0.8140576475 | E14: -0.7236067977 | F14: -0.633155948 | G14: -0.5427050983 | H14: -0.4522542486 | I14: -0.3618033989 | J14: -0.2713525492 | K14: -0.1809016994 | L14: -0.09045084972 | M14: 0 | N14: -0.03819660113 | O14: -0.1381966011 | P14: -0.2618033989 | Q14: -0.3618033989 | R14: -0.4 | S14: -0.3618033989 | T14: -0.2618033989 | U14: -0.1381966011 | V14: -0.03819660113 | W14: -6.003954946e-33
B15: -0.3 | C15: -0.6545084972 | D15: -0.5890576475 | E15: -0.5236067977 | F15: -0.458155948 | G15: -0.3927050983 | H15: -0.3272542486 | I15: -0.2618033989 | J15: -0.1963525492 | K15: -0.1309016994 | L15: -0.06545084972 | M15: 0 | N15: -0.02864745084 | O15: -0.1036474508 | P15: -0.1963525492 | Q15: -0.2713525492 | R15: -0.3 | S15: -0.2713525492 | T15: -0.1963525492 | U15: -0.1036474508 | V15: -0.02864745084 | W15: -4.50296621e-33
B16: -0.2 | C16: -0.3454915028 | D16: -0.3109423525 | E16: -0.2763932023 | F16: -0.241844052 | G16: -0.2072949017 | H16: -0.1727457514 | I16: -0.1381966011 | J16: -0.1036474508 | K16: -0.06909830056 | L16: -0.03454915028 | M16: 0 | N16: -0.01909830056 | O16: -0.06909830056 | P16: -0.1309016994 | Q16: -0.1809016994 | R16: -0.2 | S16: -0.1809016994 | T16: -0.1309016994 | U16: -0.06909830056 | V16: -0.01909830056 | W16: -3.001977473e-33
B17: -0.1 | C17: -0.09549150281 | D17: -0.08594235253 | E17: -0.07639320225 | F17: -0.06684405197 | G17: -0.05729490169 | H17: -0.04774575141 | I17: -0.03819660113 | J17: -0.02864745084 | K17: -0.01909830056 | L17: -0.009549150281 | M17: 0 | N17: -0.009549150281 | O17: -0.03454915028 | P17: -0.06545084972 | Q17: -0.09045084972 | R17: -0.1 | S17: -0.09045084972 | T17: -0.06545084972 | U17: -0.03454915028 | V17: -0.009549150281 | W17: -1.500988737e-33
B18: 0 | C18: 0 | D18: 0 | E18: 0 | F18: 0 | G18: 0 | H18: 0 | I18: 0 | J18: 0 | K18: 0 | L18: 0 | M18: 0 | N18: 0 | O18: 0 | P18: 0 | Q18: 0 | R18: 0 | S18: 0 | T18: 0 | U18: 0 | V18: 0 | W18: 0
B19: 0.1 | C19: -0.09549150281 | D19: -0.08594235253 | E19: -0.07639320225 | F19: -0.06684405197 | G19: -0.05729490169 | H19: -0.04774575141 | I19: -0.03819660113 | J19: -0.02864745084 | K19: -0.01909830056 | L19: -0.009549150281 | M19: 0 | N19: 0.009549150281 | O19: 0.03454915028 | P19: 0.06545084972 | Q19: 0.09045084972 | R19: 0.1 | S19: 0.09045084972 | T19: 0.06545084972 | U19: 0.03454915028 | V19: 0.009549150281 | W19: 1.500988737e-33
B20: 0.2 | C20: -0.3454915028 | D20: -0.3109423525 | E20: -0.2763932023 | F20: -0.241844052 | G20: -0.2072949017 | H20: -0.1727457514 | I20: -0.1381966011 | J20: -0.1036474508 | K20: -0.06909830056 | L20: -0.03454915028 | M20: 0 | N20: 0.01909830056 | O20: 0.06909830056 | P20: 0.1309016994 | Q20: 0.1809016994 | R20: 0.2 | S20: 0.1809016994 | T20: 0.1309016994 | U20: 0.06909830056 | V20: 0.01909830056 | W20: 3.001977473e-33
B21: 0.3 | C21: -0.6545084972 | D21: -0.5890576475 | E21: -0.5236067977 | F21: -0.458155948 | G21: -0.3927050983 | H21: -0.3272542486 | I21: -0.2618033989 | J21: -0.1963525492 | K21: -0.1309016994 | L21: -0.06545084972 | M21: =IF(M$7>0,$B21*SIN(PI()*M$7)^2,M$7*SIN(PI()*$B21)^2) -> 0 | N21: 0.02864745084 | O21: 0.1036474508 | P21: 0.1963525492 | Q21: 0.2713525492 | R21: 0.3 | S21: 0.2713525492 | T21: 0.1963525492 | U21: 0.1036474508 | V21: 0.02864745084 | W21: 4.50296621e-33
B22: 0.4 | C22: -0.9045084972 | D22: -0.8140576475 | E22: -0.7236067977 | F22: -0.633155948 | G22: -0.5427050983 | H22: -0.4522542486 | I22: -0.3618033989 | J22: -0.2713525492 | K22: -0.1809016994 | L22: -0.09045084972 | M22: 0 | N22: 0.03819660113 | O22: 0.1381966011 | P22: 0.2618033989 | Q22: 0.3618033989 | R22: 0.4 | S22: 0.3618033989 | T22: 0.2618033989 | U22: 0.1381966011 | V22: 0.03819660113 | W22: 6.003954946e-33
B23: 0.5 | C23: -1 | D23: -0.9 | E23: -0.8 | F23: -0.7 | G23: -0.6 | H23: -0.5 | I23: -0.4 | J23: -0.3 | K23: -0.2 | L23: -0.1 | M23: 0 | N23: 0.04774575141 | O23: 0.1727457514 | P23: 0.3272542486 | Q23: 0.4522542486 | R23: 0.5 | S23: 0.4522542486 | T23: 0.3272542486 | U23: 0.1727457514 | V23: 0.04774575141 | W23: 7.504943683e-33
B24: 0.6 | C24: -0.9045084972 | D24: -0.8140576475 | E24: -0.7236067977 | F24: -0.633155948 | G24: -0.5427050983 | H24: -0.4522542486 | I24: -0.3618033989 | J24: -0.2713525492 | K24: -0.1809016994 | L24: -0.09045084972 | M24: 0 | N24: 0.05729490169 | O24: 0.2072949017 | P24: 0.3927050983 | Q24: 0.5427050983 | R24: 0.6 | S24: 0.5427050983 | T24: 0.3927050983 | U24: 0.2072949017 | V24: 0.05729490169 | W24: 9.005932419e-33
B25: 0.7 | C25: -0.6545084972 | D25: -0.5890576475 | E25: -0.5236067977 | F25: -0.458155948 | G25: -0.3927050983 | H25: -0.3272542486 | I25: -0.2618033989 | J25: -0.1963525492 | K25: -0.1309016994 | L25: -0.06545084972 | M25: 0 | N25: 0.06684405197 | O25: 0.241844052 | P25: 0.458155948 | Q25: 0.633155948 | R25: 0.7 | S25: 0.633155948 | T25: 0.458155948 | U25: 0.241844052 | V25: 0.06684405197 | W25: 1.050692116e-32
B26: 0.8 | C26: -0.3454915028 | D26: -0.3109423525 | E26: -0.2763932023 | F26: -0.241844052 | G26: -0.2072949017 | H26: -0.1727457514 | I26: -0.1381966011 | J26: -0.1036474508 | K26: -0.06909830056 | L26: -0.03454915028 | M26: 0 | N26: 0.07639320225 | O26: 0.2763932023 | P26: 0.5236067977 | Q26: 0.7236067977 | R26: 0.8 | S26: 0.7236067977 | T26: 0.5236067977 | U26: 0.2763932023 | V26: 0.07639320225 | W26: 1.200790989e-32
B27: 0.9 | C27: -0.09549150281 | D27: -0.08594235253 | E27: -0.07639320225 | F27: -0.06684405197 | G27: -0.05729490169 | H27: -0.04774575141 | I27: -0.03819660113 | J27: -0.02864745084 | K27: -0.01909830056 | L27: -0.009549150281 | M27: 0 | N27: 0.08594235253 | O27: 0.3109423525 | P27: 0.5890576475 | Q27: 0.8140576475 | R27: 0.9 | S27: 0.8140576475 | T27: 0.5890576475 | U27: 0.3109423525 | V27: 0.08594235253 | W27: 1.350889863e-32
B28: 1 | C28: -1.500988737e-32 | D28: -1.350889863e-32 | E28: -1.200790989e-32 | F28: -1.050692116e-32 | G28: -9.005932419e-33 | H28: -7.504943683e-33 | I28: -6.003954946e-33 | J28: -4.50296621e-33 | K28: -3.001977473e-33 | L28: -1.500988737e-33 | M28: 0 | N28: 0.09549150281 | O28: 0.3454915028 | P28: 0.6545084972 | Q28: 0.9045084972 | R28: 1 | S28: 0.9045084972 | T28: 0.6545084972 | U28: 0.3454915028 | V28: 0.09549150281 | W28: 1.500988737e-32
